fUSD/lending_fUSD_20251223
["ID","MTS","AMOUNT","RATE_DAILY","PERIOD"]
[399532180,1766452248076,-150.0,0.00016095,2]
[399532181,1766452248086,-150.0,0.00016097,2]
[399532182,1766452248096,-369.560696,0.000161,2]
[399532183,1766452248104,-369.560696,0.000161,2]
[399532184,1766452248114,-369.560696,0.000161,2]
[399532185,1766452248123,-369.560696,0.000161,2]
[399532186,1766452248132,-151.0,0.000161,2]
[399532187,1766452248142,-150.0,0.000161,2]
[399532188,1766452248151,-150.0,0.00016106,2]
[399532189,1766452248160,-5524.64,0.00016116,2]
[399532190,1766452248169,-620.0,0.00016123,2]
[399532191,1766452248179,-151.0,0.00016123,2]
[399532192,1766452248188,-260.4103811,0.00016127,2]
[399532193,1766452248197,-713.97283296,0.00016127,2]
[399532194,1766452248207,-151.0,0.00016127,2]
[399532195,1766452248218,-150.0,0.00016137,2]
[399532196,1766452248228,-150.0,0.00016137,2]
[399532197,1766452248237,-6537.70854,0.0001614,2]
[399532198,1766452248247,-150.0,0.00016168,2]
[399532199,1766452248256,-150.0,0.00016174,2]
[399532200,1766452248266,-150.0,0.00016177,2]
[399532201,1766452248276,-150.0,0.00016179,2]
[399532202,1766452248286,-200.0,0.0001618,2]
[399532203,1766452248296,-200.0,0.0001618,2]
[399532204,1766452248306,-500.0,0.0001618,2]
[399532205,1766452248314,-150.0,0.00016182,2]
[399532206,1766452248324,-150.0,0.00016187,2]
[399532207,1766452248334,-150.0,0.00016194,2]
[399532208,1766452248343,-857.74830111,0.00016214,2]
[399532209,1766452248354,-3236.4927575,0.00016216,2]
[399532210,1766452248363,-150.0,0.00016222,2]
[399532211,1766452248373,-150.0,0.00016231,2]
[399532212,1766452248382,-150.0,0.00016248,2]
[399532213,1766452248392,-150.0,0.00016258,2]
[399532214,1766452248401,-150.0,0.00016264,2]
[399532215,1766452248411,-150.0,0.00016271,2]
[399532216,1766452248420,-150.0,0.00016287,2]
[399532217,1766452248430,-620.0,0.00016292,2]
[399532218,1766452248441,-150.0,0.00016294,2]
[399532219,1766452248452,-150.0,0.00016307,2]
[399532220,1766452248463,-150.0,0.00016307,2]
[399532221,1766452248473,-150.0,0.00016307,2]
[399532222,1766452248482,-150.0,0.00016322,2]
[399532223,1766452248492,-150.0,0.00016339,2]
[399532224,1766452248503,-150.0,0.00016349,2]
[399532225,1766452248517,-500.0,0.00016353,2]
[399532226,1766452248527,-620.0,0.00016357,2]
[399532227,1766452248537,-150.0,0.00016357,2]
[399532228,1766452248548,-150.0,0.0001636,2]
[399532229,1766452248559,-12584.47577619,0.00016383,2]
[399532230,1766452248569,-620.0,0.00016386,2]
[399532231,1766452248579,-150.0,0.00016387,2]
[399532232,1766452248591,-150.0,0.00016392,2]
[399532233,1766452248607,-150.0,0.00016395,2]
[399532234,1766452248617,-500.0,0.00016399,2]
[399532235,1766452248628,-1627.54,0.00016399,2]
[399532236,1766452248638,-228.0,0.000164,2]
[399532237,1766452248647,-319.0,0.000164,2]
[399532238,1766452248657,-182.0,0.000164,2]
[399532239,1766452248667,-183.8888322,0.000164,2]
[399532240,1766452248676,-22510.05361403,0.00016406,2]
[399532241,1766452248686,-208.3,0.00016408,2]
[399532242,1766452248696,-620.0,0.0001641,2]
[399532243,1766452248705,-151.0,0.00016417,2]
[399532244,1766452248714,-150.0,0.0001642,2]
[399532245,1766452248724,-150.0,0.0001642,2]
[399532246,1766452248734,-150.0,0.0001642,2]
[399532247,1766452248744,-150.0,0.0001642,2]
[399532248,1766452248753,-150.0,0.00016434,2]
[399532249,1766452248763,-500.0,0.00016437,2]
[399532250,1766452248773,-500.0,0.00016437,2]
[399532251,1766452248783,-500.0,0.00016437,2]
[399532252,1766452248793,-260.05,0.00016437,2]
[399532253,1766452248803,-500.0,0.00016437,2]
[399532254,1766452248813,-500.0,0.00016437,2]
[399532255,1766452248822,-500.0,0.00016437,2]
[399532256,1766452248832,-500.0,0.00016437,2]
[399532257,1766452248842,-500.0,0.00016437,2]
[399532258,1766452248852,-500.0,0.00016437,2]
[399532259,1766452248861,-500.0,0.00016437,2]
[399532260,1766452248871,-500.0,0.00016437,2]
[399532261,1766452248880,-462.9321951,0.00016437,2]
[399532262,1766452248891,-500.0,0.00016437,2]
[399532263,1766452248901,-500.0,0.00016437,2]
[399532264,1766452248911,-500.0,0.00016437,2]
[399532265,1766452248920,-2724.5,0.00016438,2]
[399532266,1766452248930,-150.0,0.00016438,2]
[399532267,1766452248939,-500.0,0.00016438,2]
[399532268,1766452248948,-500.0,0.00016438,2]
[399532269,1766452248958,-500.0,0.00016438,2]
[399532270,1766452248968,-500.0,0.00016438,2]
[399532271,1766452248978,-500.0,0.00016438,2]
[399532272,1766452248988,-500.0,0.00016438,2]
[399532273,1766452248998,-151.0,0.00016438,2]
[399532274,1766452249007,-544.45,0.00016438,2]
[399532275,1766452249018,-556.25,0.00016438,2]
[399532276,1766452249027,-500.0,0.00016438,2]
[399532277,1766452249036,-500.0,0.00016438,2]
[399532278,1766452249045,-500.0,0.00016438,2]
[399532279,1766452249056,-500.0,0.00016438,2]
[399532280,1766452249065,-500.0,0.00016438,2]
[399532281,1766452249075,-500.0,0.00016438,2]
[399532282,1766452249085,-500.0,0.00016438,2]
[399532283,1766452249095,-500.0,0.00016438,2]
[399532284,1766452249104,-500.0,0.00016438,2]
[399532285,1766452249113,-500.0,0.00016438,2]
[399532286,1766452249122,-500.0,0.00016438,2]
[399532287,1766452249131,-500.0,0.00016438,2]
[399532288,1766452249140,-500.0,0.00016438,2]
[399532289,1766452249150,-500.0,0.00016438,2]
[399532290,1766452249159,-500.0,0.00016438,2]
[399532291,1766452249169,-500.0,0.00016438,2]
[399532292,1766452249178,-500.0,0.00016438,2]
[399532293,1766452249187,-500.0,0.00016438,2]
[399532294,1766452249196,-500.0,0.00016438,2]
[399532295,1766452249205,-500.0,0.00016438,2]
[399532296,1766452249215,-500.0,0.00016438,2]
[399532297,1766452249224,-500.0,0.00016438,2]
[399532298,1766452249234,-500.0,0.00016438,2]
[399532299,1766452249243,-500.0,0.00016438,2]
[399532300,1766452249252,-500.0,0.00016438,2]
[399532301,1766452249262,-500.0,0.00016438,2]
[399532302,1766452249271,-450.00000007,0.00016438,2]
[399532303,1766452249281,-151.0,0.00016438,2]
[399532304,1766452249290,-500.0,0.00016438,2]
[399532305,1766452249299,-500.0,0.00016438,2]
[399532306,1766452249309,-600.0,0.00016438,2]
[399532307,1766452249318,-225.92,0.00016438,2]
[399532308,1766452249327,-670.27,0.00016438,2]
[399532309,1766452249337,-10332.1,0.00016438,2]
[399532310,1766452249346,-151.0,0.00016438,2]
[399532311,1766452249356,-151.0,0.00016438,2]
[399532312,1766452249365,-800.0,0.00016438,2]
[399532313,1766452249374,-151.0,0.00016438,2]
[399532314,1766452249383,-151.0,0.00016438,2]
[399532315,1766452249392,-151.0,0.00016438,2]
[399532316,1766452249402,-151.0,0.00016438,2]
[399532317,1766452249411,-151.0,0.00016438,2]
[399532318,1766452249420,-151.0,0.00016438,2]
[399532319,1766452249430,-494.288364,0.00016438,2]
[399532320,1766452249439,-494.288364,0.00016438,2]
[399532321,1766452249448,-494.288364,0.00016438,2]
[399532322,1766452249457,-494.288364,0.00016438,2]
[399532323,1766452249467,-494.288364,0.00016438,2]
[399532324,1766452249476,-494.288364,0.00016438,2]
[399532325,1766452249485,-494.288364,0.00016438,2]
[399532326,1766452249495,-494.288364,0.00016438,2]
[399532327,1766452249571,-2261.52,0.00016441,2]
[399532328,1766452249581,-150.0,0.0001645,2]
[399532329,1766452249591,-500.0,0.00016465,2]
[399532330,1766452249600,-150.0,0.00016469,2]
[399532331,1766452249609,-150.0,0.00016477,2]
[399532332,1766452249618,-150.0,0.00016483,2]
[399532333,1766452249627,-150.0,0.00016487,2]
[399532334,1766452249635,-500.0,0.00016493,2]
[399532335,1766452249644,-150.0,0.00016501,2]
[399532336,1766452249653,-150.0,0.00016519,2]
[399532337,1766452249662,-500.0,0.0001652,2]
[399532338,1766452249671,-150.0,0.00016533,2]
[399532339,1766452249680,-150.0,0.00016539,2]
[399532340,1766452249689,-150.0,0.00016543,2]
[399532341,1766452249698,-150.0,0.00016546,2]
[399532342,1766452249707,-500.0,0.00016548,2]
[399532343,1766452249717,-620.0,0.00016548,2]
[399532344,1766452249726,-620.0,0.00016549,2]
[399532345,1766452249735,-3236.4927575,0.00016558,2]
[399532346,1766452249744,-150.0,0.00016562,2]
[399532347,1766452249753,-150.0,0.00016562,2]
[399532348,1766452249763,-500.0,0.00016575,2]
[399532349,1766452249773,-150.0,0.00016582,2]
[399532350,1766452249782,-150.0,0.00016587,2]
[399532351,1766452249791,-1000.0,0.00016589,2]
[399532352,1766452249800,-500.0,0.00016602,2]
[399532353,1766452249809,-150.0,0.00016604,2]
[399532354,1766452249819,-620.0,0.00016605,2]
[399532355,1766452249828,-150.0,0.00016609,2]
[399532356,1766452249837,-150.0,0.00016617,2]
[399532357,1766452249846,-150.0,0.00016629,2]
[399532358,1766452249855,-500.0,0.0001663,2]
[399532359,1766452249865,-620.0,0.00016634,2]
[399532360,1766452249874,-150.0,0.00016647,2]
[399532361,1766452249883,-150.0,0.00016647,2]
[399532362,1766452249893,-150.0,0.00016647,2]
[399532363,1766452249902,-500.0,0.00016657,2]
[399532364,1766452249911,-150.0,0.00016663,2]
[399532365,1766452249920,-150.0,0.00016672,2]
[399532366,1766452249929,-270.0455652,0.00016675,2]
[399532367,1766452249938,-740.38982778,0.00016675,2]
[399532368,1766452249947,-151.0,0.00016675,2]
[399532369,1766452249956,-620.0,0.00016681,2]
[399532370,1766452249966,-505.01496115,0.00016685,2]
[399532371,1766452249975,-150.0,0.00016687,2]
[399532372,1766452249985,-150.0,0.00016689,2]
[399532373,1766452249994,-150.0,0.00016691,2]
[399532374,1766452250004,-544.45,0.00016712,2]
[399532375,1766452250013,-556.25,0.00016712,2]
[399532376,1766452250022,-165.5,0.00016712,2]
[399532377,1766452250031,-150.0,0.00016718,2]
[399532378,1766452250040,-200.0,0.00016728,2]
[399532379,1766452250049,-200.0,0.00016728,2]
[399532380,1766452250058,-500.0,0.00016728,2]
[399532381,1766452250067,-150.0,0.00016732,2]
[399532382,1766452250076,-150.0,0.00016735,2]
[399532383,1766452250085,-150.0,0.00016744,2]
[399532384,1766452250094,-150.0,0.0001676,2]
[399532385,1766452250103,-150.0,0.00016765,2]
[399532386,1766452250112,-150.0,0.00016774,2]
[399532387,1766452250122,-150.0,0.00016786,2]
[399532388,1766452250131,-150.0,0.00016798,2]
[399532389,1766452250139,-150.0,0.00016807,2]
[399532390,1766452250148,-150.0,0.00016816,2]
[399532391,1766452250157,-289.0,0.00016824,2]
[399532392,1766452250166,-150.0,0.00016825,2]
[399532393,1766452250175,-150.0,0.00016839,2]
[399532394,1766452250184,-150.0,0.00016859,2]
[399532395,1766452250192,-150.0,0.0001686,2]
[399532396,1766452250201,-150.0,0.00016873,2]
[399532397,1766452250210,-150.0,0.00016886,2]
[399532398,1766452250219,-150.0,0.00016897,2]
[399532399,1766452250228,-300.0,0.00016899,2]
[399532400,1766452250237,-300.0,0.00016899,2]
[399532401,1766452250246,-300.0,0.00016899,2]
[399532402,1766452250256,-300.0,0.00016899,2]
[399532403,1766452250265,-197.26789526,0.000169,2]
[399532404,1766452250275,-22510.05361403,0.000169,2]
[399532405,1766452250284,-12584.47577619,0.000169,2]
[399532406,1766452250293,-3236.4927575,0.000169,2]
[399532407,1766452250303,-193.82133822,0.000169,2]
[399532408,1766452250311,-724.94079198,0.000169,2]
[399532409,1766452250320,-1379.29748404,0.000169,2]
[399532410,1766452250329,-989.64398228,0.000169,2]
[399532411,1766452250337,-211.71595034,0.000169,2]
[399532412,1766452250346,-150.0,0.00016901,2]
[399532413,1766452250355,-150.0,0.00016905,2]
[399532414,1766452250364,-625.0,0.0001691,2]
[399532415,1766452250373,-150.0,0.00016912,2]
[399532416,1766452250383,-150.0,0.00016923,2]
[399532417,1766452250392,-1600.0,0.00016925,2]
[399532418,1766452250403,-620.0,0.00016937,2]
[399532419,1766452250412,-150.0,0.00016944,2]
[399532420,1766452250421,-151.0,0.00016946,2]
[399532421,1766452250430,-359.76179104,0.00016946,2]
[399532422,1766452250439,-500.0,0.00016973,2]
[399532423,1766452250447,-500.0,0.00016973,2]
[399532424,1766452250456,-500.0,0.00016973,2]
[399532425,1766452250465,-500.0,0.00016973,2]
[399532426,1766452250474,-500.0,0.00016973,2]
[399532427,1766452250483,-178.30466226,0.00016973,2]
[399532428,1766452250492,-500.0,0.00016973,2]
[399532429,1766452250502,-500.0,0.00016973,2]
[399532430,1766452250514,-500.0,0.00016973,2]
[399532431,1766452250524,-318.15085489,0.00016973,2]
[399532432,1766452250532,-500.0,0.00016973,2]
[399532433,1766452250541,-500.0,0.00016973,2]
[399532434,1766452250550,-500.0,0.00016973,2]
[399532435,1766452250558,-500.0,0.00016973,2]
[399532436,1766452250567,-150.0,0.00016973,2]
[399532437,1766452250576,-150.0,0.00016973,2]
[399532438,1766452250586,-500.0,0.00016985,2]
[399532439,1766452250594,-1627.54,0.00016985,2]
[399532440,1766452250603,-4000.0,0.00016986,2]
[399532441,1766452250612,-600.0,0.00016986,2]
[399532442,1766452250621,-150.0,0.00016986,2]
[399532443,1766452250629,-150.0,0.00016986,2]
[399532444,1766452250638,-174.96680864,0.00016986,2]
[399532445,1766452250647,-150.0,0.00016986,2]
[399532446,1766452250656,-150.0,0.00016986,2]
[399532447,1766452250665,-150.0,0.00016986,2]
[399532448,1766452250674,-150.0,0.00016986,2]
[399532449,1766452250683,-150.0,0.00016986,2]
[399532450,1766452250692,-150.0,0.00016986,2]
[399532451,1766452250701,-150.0,0.00016986,2]
[399532452,1766452250710,-150.0,0.00016986,2]
[399532453,1766452250719,-370.0,0.00016988,2]
[399532454,1766452250728,-500.0,0.00016996,2]
[399532455,1766452250737,-500.0,0.00016996,2]
[399532456,1766452250746,-500.0,0.00016996,2]
[399532457,1766452250755,-500.0,0.00016996,2]
[399532458,1766452250764,-500.0,0.00016996,2]
[399532459,1766452250773,-370.97583972,0.00016996,2]
[399532460,1766452250782,-525.99859536,0.00016996,2]
[399532461,1766452250791,-500.0,0.00016996,2]
[399532462,1766452250800,-500.0,0.00016996,2]
[399532463,1766452250809,-500.0,0.00016996,2]
[399532464,1766452250819,-500.0,0.00016996,2]
[399532465,1766452250827,-500.0,0.00016996,2]
[399532466,1766452250836,-500.0,0.00016996,2]
[399532467,1766452250845,-500.0,0.00016996,2]
[399532468,1766452250854,-500.0,0.00016996,2]
[399532469,1766452250863,-500.0,0.00016996,2]
[399532470,1766452250872,-500.0,0.00016996,2]
[399532471,1766452250882,-500.0,0.00016996,2]
[399532472,1766452250891,-508.77600646,0.00016996,2]
[399532473,1766452250900,-500.0,0.00016996,2]
[399532474,1766452250909,-500.0,0.00016996,2]
[399532475,1766452250918,-500.0,0.00016996,2]
[399532476,1766452250927,-151.84826967,0.00016996,2]
[399532477,1766452250936,-1033.82212466,0.00016998,5]
[399532478,1766452250945,-300.0,0.00016998,2]
[399532479,1766452250954,-300.0,0.00016998,2]
[399532480,1766452250963,-300.0,0.00016998,2]
[399532481,1766452250972,-300.0,0.00016998,2]
[399532482,1766452250981,-500.0,0.00016999,2]
[399532483,1766452250991,-500.0,0.00016999,2]
[399532484,1766452251000,-500.0,0.00016999,2]
[399532485,1766452251010,-500.0,0.00016999,2]
[399532486,1766452251020,-500.0,0.00016999,2]
[399532487,1766452251029,-500.0,0.00016999,2]
[399532488,1766452251038,-500.0,0.00016999,2]
[399532489,1766452251047,-500.0,0.00016999,2]
[399532490,1766452251057,-500.0,0.00016999,2]
[399532491,1766452251067,-23.49105521,0.00016999,2]
[399532492,1766452251710,-316.47033406,0.00016999,2]
[399532493,1766452251729,-160.03861073,0.00016999,2]
[399532494,1766452251738,-500.0,0.00016999,2]
[399532495,1766452251748,-500.0,0.00016999,2]
[399532496,1766452251758,-500.0,0.00016999,2]
[399532497,1766452251768,-203.0,0.00016999,2]
[399532498,1766452251778,-214.39437544,0.00016999,2]
[399532499,1766452252185,-356.70875582,0.00012713,2]
[399532500,1766452252195,-43.5282951,0.000169,2]
[399532501,1766452252231,-309.95650026,0.000169,2]
[399532502,1766452252246,-440.415,0.000169,2]
[399532504,1766452944735,500.0,0.000176,30]
[399532505,1766453037975,161.95,6.046e-05,2]
[399532506,1766453038014,161.95,7.054e-05,2]
[399532507,1766453038062,161.95,8.062e-05,2]
[399532508,1766453038107,161.95,9.069e-05,2]
[399532509,1766453265695,2351.91611625,0.00013,15]
[399532511,1766453313633,999.0,0.00011011,3]
[399532512,1766453316377,4504.59501815,0.0001,2]
[399532522,1766453432221,-233.0,0.00010077,2]
[399532524,1766453432231,-161.95,0.00010077,2]
[399532526,1766453432240,-250.0,0.00010581,2]
[399532528,1766453432249,-1200.0,0.00011084,2]
[399532530,1766453432258,-300.0,0.00011084,2]
[399532532,1766453432267,-300.0,0.00011084,2]
[399532533,1766453432277,-1200.0,0.00011084,2]
[399532535,1766453432286,-73.1900099,0.00011085,2]
[399532536,1766453432300,-226.8099901,0.00011085,2]
[399532537,1766453432310,-195.0,0.00011085,2]
[399532538,1766453432319,-250.0,0.00011085,2]
[399532539,1766453432328,-195.0,0.00011085,2]
[399532540,1766453432338,-118.40313904,0.00011085,2]
[399532541,1766453432349,-181.59686096,0.00011085,2]
[399532542,1766453432358,-195.0,0.00011085,2]
[399532543,1766453432368,-300.0,0.00011085,2]
[399532544,1766453432377,-195.0,0.00011085,2]
[399532545,1766453432386,-300.0,0.00011085,2]
[399532546,1766453432395,-195.0,0.00011085,2]
[399532547,1766453432404,-300.0,0.00011085,2]
[399532548,1766453432413,-161.95,0.00011085,2]
[399532549,1766453432422,-159.65547619,0.00011249,2]
[399532550,1766453432432,-1945.995,0.0001126,2]
[399532551,1766453432441,-166.66,0.00011261,2]
[399532552,1766453432450,-151.0,0.00011277,2]
[399532553,1766453432459,-150.0,0.00011278,2]
[399532554,1766453432468,-500.0,0.00011279,2]
[399532555,1766453432479,-283.08509983,0.00011279,2]
[399532556,1766453432488,-200.37390587,0.00011279,2]
[399532557,1766453432497,-500.0,0.00011279,2]
[399532558,1766453432507,-500.0,0.00011279,2]
[399532559,1766453432516,-500.0,0.00011279,2]
[399532560,1766453432526,-500.0,0.00011279,2]
[399532561,1766453432535,-500.0,0.00011279,2]
[399532562,1766453432545,-500.0,0.00011279,2]
[399532563,1766453432555,-500.0,0.00011279,2]
[399532564,1766453432565,-221.49122718,0.00011279,2]
[399532565,1766453432605,-278.50877282,0.00011279,2]
[399532566,1766453432615,-500.0,0.00011279,2]
[399532567,1766453432624,-500.0,0.00011279,2]
[399532568,1766453432633,-500.0,0.00011279,2]
[399532569,1766453432643,-500.0,0.00011279,2]
[399532570,1766453432653,-500.0,0.00011279,2]
[399532571,1766453432662,-500.0,0.00011279,2]
[399532572,1766453432671,-500.0,0.00011279,2]
[399532573,1766453432680,-197.85878483,0.00011279,2]
[399532574,1766453432689,-500.0,0.00011279,2]
[399532575,1766453432699,-500.0,0.00011279,2]
[399532576,1766453432709,-395.95315078,0.00011279,2]
[399532577,1766453432721,-104.04684922,0.00011279,2]
[399532578,1766453432731,-500.0,0.00011279,2]
[399532579,1766453432740,-165.2227432,0.00011279,2]
[399532580,1766453432750,-473.98955188,0.00011279,2]
[399532581,1766453432759,-500.0,0.00011279,2]
[399532582,1766453432768,-500.0,0.00011279,2]
[399532583,1766453432778,-500.0,0.00011279,2]
[399532584,1766453432787,-500.0,0.00011279,2]
[399532585,1766453432796,-500.0,0.00011279,2]
[399532586,1766453432806,-500.0,0.00011279,2]
[399532587,1766453432815,-500.0,0.00011279,2]
[399532588,1766453432825,-500.0,0.00011279,2]
[399532589,1766453432835,-500.0,0.00011279,2]
[399532590,1766453432850,-500.0,0.00011279,2]
[399532591,1766453432862,-500.0,0.00011279,2]
[399532592,1766453432871,-500.0,0.00011279,2]
[399532593,1766453432881,-500.0,0.00011279,2]
[399532594,1766453432892,-500.0,0.00011279,2]
[399532595,1766453432902,-442.74496884,0.00011279,2]
[399532596,1766453432911,-500.0,0.00011279,2]
[399532597,1766453432921,-794.14940387,0.00011279,2]
[399532598,1766453432931,-794.14940387,0.00011279,2]
[399532599,1766453432941,-794.14940387,0.00011279,2]
[399532600,1766453432950,-794.14940387,0.00011279,2]
[399532601,1766453432960,-794.14940387,0.00011279,2]
[399532602,1766453432969,-794.14940387,0.00011279,2]
[399532603,1766453432979,-794.14940387,0.00011279,2]
[399532604,1766453432988,-794.14940387,0.00011279,2]
[399532605,1766453433001,-794.14940387,0.00011279,2]
[399532606,1766453433011,-794.14940387,0.00011279,2]
[399532607,1766453433020,-794.14940387,0.00011279,2]
[399532608,1766453433031,-794.14940387,0.00011279,2]
[399532609,1766453433041,-794.14940387,0.00011279,2]
[399532610,1766453433050,-794.14940387,0.00011279,2]
[399532611,1766453433059,-794.14940387,0.00011279,2]
[399532612,1766453433072,-794.14940387,0.00011279,2]
[399532613,1766453433082,-794.14940387,0.00011279,2]
[399532614,1766453433092,-794.14940387,0.00011279,2]
[399532615,1766453433102,-794.14940387,0.00011279,2]
[399532616,1766453433112,-794.14940387,0.00011279,2]
[399532617,1766453433122,-794.14940387,0.00011279,2]
[399532618,1766453433132,-794.14940387,0.00011279,2]
[399532619,1766453433142,-794.14940387,0.00011279,2]
[399532620,1766453433151,-794.14940387,0.00011279,2]
[399532621,1766453433161,-130.05997879,0.00011279,2]
[399532622,1766453433175,-664.08942508,0.00011279,2]
[399532623,1766453433185,-794.14940387,0.00011279,2]
[399532624,1766453433195,-794.14940387,0.00011279,2]
[399532626,1766453433204,-721.00250607,0.00011279,2]
[399532629,1766453438303,-73.1468978,0.00011279,2]
[399532630,1766453438313,-794.14940387,0.00011279,2]
[399532631,1766453438323,-794.14940387,0.00011279,2]
[399532632,1766453438334,-794.14940387,0.00011279,2]
[399532633,1766453438344,-794.14940387,0.00011279,2]
[399532634,1766453438354,-794.14940387,0.00011279,2]
[399532635,1766453438364,-794.14940387,0.00011279,2]
[399532636,1766453438374,-794.14940387,0.00011279,2]
[399532637,1766453438384,-794.14940387,0.00011279,2]
[399532638,1766453438393,-794.14940387,0.00011279,2]
[399532639,1766453438403,-794.14940387,0.00011279,2]
[399532640,1766453438413,-794.14940387,0.00011279,2]
[399532641,1766453438422,-794.14940387,0.00011279,2]
[399532642,1766453438432,-794.14940387,0.00011279,2]
[399532643,1766453438441,-616.18532396,0.00011279,2]
[399532644,1766453438452,-177.96407991,0.00011279,2]
[399532645,1766453438462,-794.14940387,0.00011279,2]
[399532646,1766453438472,-794.14940387,0.00011279,2]
[399532647,1766453438481,-794.14940387,0.00011279,2]
[399532648,1766453438491,-794.14940387,0.00011279,2]
[399532649,1766453438500,-723.01704753,0.00011279,2]
[399532657,1766453439436,-71.13235634,0.00011279,2]
[399532658,1766453439446,-794.14940387,0.00011279,2]
[399532659,1766453439455,-794.14940387,0.00011279,2]
[399532660,1766453439465,-795.94071831,0.00011279,2]
[399532661,1766453439475,-795.94071831,0.00011279,2]
[399532662,1766453439484,-795.94071831,0.00011279,2]
[399532663,1766453439494,-795.94071831,0.00011279,2]
[399532664,1766453439503,-795.94071831,0.00011279,2]
[399532665,1766453439513,-795.94071831,0.00011279,2]
[399532666,1766453439522,-795.94071831,0.00011279,2]
[399532667,1766453439531,-795.94071831,0.00011279,2]
[399532668,1766453439541,-795.94071831,0.00011279,2]
[399532669,1766453439550,-795.94071831,0.00011279,2]
[399532670,1766453439559,-795.94071831,0.00011279,2]
[399532671,1766453439569,-795.94071831,0.00011279,2]
[399532672,1766453439578,-795.94071831,0.00011279,2]
[399532673,1766453439587,-795.94071831,0.00011279,2]
[399532674,1766453439596,-795.94071831,0.00011279,2]
[399532675,1766453439605,-795.94071831,0.00011279,2]
[399532676,1766453439615,-795.94071831,0.00011279,2]
[399532677,1766453439624,-795.94071831,0.00011279,2]
[399532678,1766453439633,-795.94071831,0.00011279,2]
[399532679,1766453439642,-300156.15500466,0.0001128,2]
[399532680,1766453439652,-4716.48436417,0.00011353,2]
[399532681,1766453439660,-162.03360749,0.00011453,2]
[399532682,1766453439669,-500.0,0.00011553,2]
[399532683,1766453439677,-166.66,0.00011633,2]
[399532684,1766453439686,-294.51,0.00011782,2]
[399532685,1766453439698,-500.0,0.00011827,2]
[399532686,1766453439706,-274.59376241,0.00011868,2]
[399532687,1766453439715,-1779.93473714,0.00011898,2]
[399532688,1766453439724,-215.0,0.0001195,2]
[399532689,1766453439733,-4716.48436413,0.00011969,2]
[399532690,1766453439742,-151.0,0.0001199,2]
[399532691,1766453439751,-151.0,0.0001199,2]
[399532692,1766453439760,-1000000.0,0.00011993,2]
[399532693,1766453439769,-6690.2965,0.00011999,2]
[399532694,1766453439778,-2449.8674,0.00011999,2]
[399532695,1766453439788,-2500.0,0.00012,2]
[399532696,1766453439797,-166.66,0.00012004,2]
[399532697,1766453439806,-365.28932412,0.00012021,2]
[399532698,1766453439815,-863.04636614,0.00012048,2]
[399532699,1766453439825,-387.0,0.00012048,2]
[399532700,1766453439834,-1500.0,0.00012069,2]
[399532701,1766453439845,-1645.0,0.00012072,2]
[399532702,1766453439857,-161.95,0.00012093,2]
[399532703,1766453439866,-9221.0,0.00012093,2]
[399532704,1766453439875,-150.99,0.00012093,2]
[399532705,1766453439883,-9999.99,0.00012093,2]
[399532706,1766453439894,-999.99,0.00012093,2]